fUSD/lending_fUSD_20260108
["ID","MTS","AMOUNT","RATE_DAILY","PERIOD"]
[400792143,1767830454253,7500.01,0.00012819,2]
[400792144,1767830454320,10000.01,0.00012819,2]
[400792145,1767830454385,10000.01,0.00012819,2]
[400792146,1767830454448,5596.47,0.00012819,2]
[400792155,1767830486362,1100.0,0.00014213,2]
[400792160,1767830491145,1100.0,0.00013502,2]
[400792161,1767830495919,1100.0,0.00012827,2]
[400792169,1767830500685,1100.0,0.00012186,2]
[400792174,1767830506570,3.54,0.00011577,2]
[400792175,1767830506645,1096.46,0.00011577,2]
[400792176,1767830510309,1100.0,0.00010998,2]
[400792178,1767830515138,1100.0,0.00010448,2]
[400792179,1767830519905,1100.0,0.000101,2]
[400792204,1767830595186,206.1,0.00012819,2]
[400792213,1767830664683,1649.13,0.00012,2]
[400792215,1767830666192,1038.49,0.00012819,2]
[400792226,1767830742765,1000.0,0.00032877,120]
[400792227,1767830745010,999.0,0.0001425,3]
[400792230,1767830752167,1000.0,0.00032877,120]
[400792242,1767830830320,7106.29,0.00014207,2]
[400792243,1767830830475,6284.62,0.00014207,2]
[400792244,1767830831987,500.0,0.00032877,120]
[400792254,1767830948264,150.0,0.00014019,2]
[400792289,1767831031996,-219.26,0.00014551,2]
[400792291,1767831032006,-195.0,0.0001456,2]
[400792293,1767831032016,-250.0,0.00014569,2]
[400792295,1767831032026,-159.95735445,0.00014586,2]
[400792297,1767831032037,-35.04264555,0.00014586,2]
[400792298,1767831032049,-714.19560392,0.00014592,2]
[400792299,1767831032061,-250.0,0.00014616,2]
[400792300,1767831032071,-195.0,0.00014645,2]
[400792301,1767831032081,-714.19560392,0.00014668,2]
[400792302,1767831032093,-156.17870102,0.00014692,2]
[400792303,1767831032104,-846.94,0.00014692,2]
[400792304,1767831032114,-1200.0,0.00014743,2]
[400792305,1767831032126,-6703.9439,0.00014744,2]
[400792306,1767831032136,-299.19084191,0.00014777,2]
[400792308,1767831032145,-155.46480728,0.00014788,2]
[400792310,1767831032157,-0.71389374,0.00014788,2]
[400792312,1767831032167,-300.0,0.00014842,2]
[400792314,1767831032176,-112.06338695,0.00014842,2]
[400792316,1767831032188,-187.93661305,0.00014842,2]
[400792318,1767831032197,-150.0,0.00014843,2]
[400792320,1767831032207,-511.13510878,0.00014843,2]
[400792322,1767831032218,-183.51,0.00014844,2]
[400792323,1767831032229,-299.99,0.00014844,2]
[400792324,1767831032242,-150.99,0.00014844,2]
[400792325,1767831032252,-7397.51963729,0.00014844,2]
[400792326,1767831032265,-696.84320001,0.00014844,2]
[400792328,1767831032276,-1011.78438706,0.00014844,2]
[400792329,1767831032316,-2640.28225799,0.00014844,2]
[400792330,1767831032328,-1414.9164902,0.00014844,2]
[400792331,1767831032341,-77525.73402745,0.00014844,2]
[400792332,1767831032351,-5708.28,0.00014844,2]
[400792334,1767831032361,-3073.06,0.00014844,2]
[400792335,1767831032370,-2615.43,0.00014844,2]
[400792336,1767831032380,-156.17870102,0.00014936,2]
[400792337,1767831032390,-5268.45,0.00014936,2]
[400792338,1767831032400,-9999.99,0.00014936,2]
[400792339,1767831032411,-150.99,0.00014936,2]
[400792340,1767831032421,-500.0,0.00014961,2]
[400792341,1767831032431,-1100.0,0.00014961,2]
[400792343,1767831032441,-2647.6,0.00015035,2]
[400792344,1767831032451,-3750.53,0.00015036,2]
[400792345,1767831032460,-500.0,0.00015073,2]
[400792346,1767831032469,-505.38555235,0.00015073,2]
[400792347,1767831032479,-500.0,0.00015073,2]
[400792348,1767831032488,-500.0,0.00015073,2]
[400792349,1767831032498,-500.0,0.00015073,2]
[400792350,1767831032508,-376.44941512,0.00015073,2]
[400792351,1767831032518,-500.0,0.00015073,2]
[400792353,1767831032528,-500.0,0.00015073,2]
[400792354,1767831032537,-500.0,0.00015073,2]
[400792355,1767831032547,-264.76446572,0.00015073,2]
[400792356,1767831032558,-235.23553428,0.00015073,2]
[400792357,1767831032568,-203.51299243,0.00015074,2]
[400792358,1767831032581,-500.0,0.00015074,2]
[400792359,1767831032591,-500.0,0.00015074,2]
[400792360,1767831032601,-500.0,0.00015074,2]
[400792361,1767831032613,-500.0,0.00015074,2]
[400792362,1767831032624,-500.0,0.00015074,2]
[400792363,1767831032635,-500.0,0.00015074,2]
[400792364,1767831032646,-500.0,0.00015074,2]
[400792365,1767831032656,-500.0,0.00015074,2]
[400792366,1767831032666,-500.0,0.00015074,2]
[400792367,1767831032677,-500.0,0.00015074,2]
[400792368,1767831032687,-500.0,0.00015074,2]
[400792369,1767831032698,-500.0,0.00015074,2]
[400792370,1767831032708,-500.0,0.00015074,2]
[400792371,1767831032719,-174.40358657,0.00015074,2]
[400792372,1767831032729,-500.0,0.00015074,2]
[400792373,1767831032739,-500.0,0.00015074,2]
[400792374,1767831032748,-500.0,0.00015074,2]
[400792375,1767831032759,-500.0,0.00015074,2]
[400792376,1767831032773,-500.0,0.00015074,2]
[400792377,1767831032783,-500.0,0.00015074,2]
[400792378,1767831032793,-500.0,0.00015074,2]
[400792379,1767831032803,-500.0,0.00015074,2]
[400792380,1767831032813,-500.0,0.00015074,2]
[400792381,1767831032823,-500.0,0.00015074,2]
[400792382,1767831032834,-500.0,0.00015074,2]
[400792383,1767831032845,-500.0,0.00015074,2]
[400792384,1767831032855,-500.0,0.00015074,2]
[400792385,1767831032866,-309.45961117,0.00015074,2]
[400792386,1767831032879,-190.54038883,0.00015074,2]
[400792387,1767831032890,-500.0,0.00015074,2]
[400792388,1767831032901,-500.0,0.00015074,2]
[400792389,1767831032912,-500.0,0.00015074,2]
[400792390,1767831032923,-500.0,0.00015074,2]
[400792391,1767831032933,-500.0,0.00015074,2]
[400792392,1767831032944,-500.0,0.00015074,2]
[400792393,1767831032955,-500.0,0.00015074,2]
[400792394,1767831032968,-1852.42,0.00015075,2]
[400792395,1767831032978,-10075.83,0.00015092,2]
[400792396,1767831032989,-4715.43022617,0.00015411,2]
[400792397,1767831032999,-151.0,0.0001554,2]
[400792398,1767831033010,-151.0,0.0001554,2]
[400792399,1767831033020,-151.0,0.0001554,2]
[400792400,1767831033030,-151.0,0.0001554,2]
[400792401,1767831033041,-151.0,0.0001554,2]
[400792402,1767831033055,-151.0,0.0001554,2]
[400792403,1767831033065,-151.0,0.0001554,2]
[400792404,1767831033075,-151.0,0.0001554,2]
[400792405,1767831033087,-151.0,0.0001554,2]
[400792406,1767831033098,-151.0,0.0001554,2]
[400792407,1767831033108,-151.0,0.0001554,2]
[400792408,1767831033119,-322.6107,0.0001554,2]
[400792409,1767831033129,-500.0,0.0001554,2]
[400792410,1767831033139,-500.0,0.0001554,2]
[400792411,1767831033148,-500.0,0.0001554,2]
[400792412,1767831033158,-500.0,0.0001554,2]
[400792413,1767831033171,-500.0,0.0001554,2]
[400792414,1767831033181,-500.0,0.0001554,2]
[400792415,1767831033191,-255.49772714,0.0001554,2]
[400792416,1767831033201,-578.20924308,0.0001554,2]
[400792417,1767831033211,-620.0,0.0001554,2]
[400792418,1767831033221,-414.00826899,0.0001554,2]
[400792419,1767831033234,-85.99173101,0.0001554,2]
[400792420,1767831033245,-500.0,0.0001554,2]
[400792421,1767831033254,-500.0,0.0001554,2]
[400792422,1767831033264,-168.42635576,0.0001554,2]
[400792423,1767831033276,-331.57364424,0.0001554,2]
[400792424,1767831033285,-500.0,0.0001554,2]
[400792425,1767831033295,-300.09459102,0.0001554,2]
[400792426,1767831033307,-199.90540898,0.0001554,2]
[400792427,1767831033317,-500.0,0.0001554,2]
[400792428,1767831033327,-500.0,0.0001554,2]
[400792429,1767831033337,-574.12855637,0.0001554,2]
[400792430,1767831033347,-223.96603465,0.0001554,2]
[400792431,1767831033359,-705.89360131,0.0001554,2]
[400792440,1767831037695,160.96,0.00012334,2]
[400792445,1767831037930,-714.19560392,0.00014744,2]
[400792446,1767831037939,-971.24959613,0.00014744,2]
[400792447,1767831037950,-3656.35162503,0.00014744,2]
[400792448,1767831037962,-20.97517884,0.00014744,2]
[400792449,1767831037971,-160.96,0.00015418,2]
[400792450,1767831037980,-570.14036404,0.0001554,2]
[400792451,1767831037990,-500.0,0.0001554,2]
[400792452,1767831038000,-208.1121049,0.0001554,2]
[400792453,1767831038012,-291.8878951,0.0001554,2]
[400792454,1767831038021,-1500.0,0.0001554,2]
[400792455,1767831038030,-500.0,0.0001554,2]
[400792456,1767831038040,-500.0,0.0001554,2]
[400792457,1767831038054,-1500.0,0.0001554,2]
[400792458,1767831038063,-500.0,0.0001554,2]
[400792459,1767831038073,-500.0,0.0001554,2]
[400792460,1767831038082,-1500.0,0.0001554,2]
[400792461,1767831038093,-197.10869786,0.0001554,2]
[400792462,1767831038103,-500.0,0.0001554,2]
[400792463,1767831038112,-1500.0,0.0001554,2]
[400792464,1767831038123,-1500.0,0.0001554,2]
[400792465,1767831038132,-500.0,0.0001554,2]
[400792466,1767831038141,-1500.0,0.0001554,2]
[400792467,1767831038150,-500.0,0.0001554,2]
[400792468,1767831038159,-1500.0,0.0001554,2]
[400792469,1767831038168,-500.0,0.0001554,2]
[400792470,1767831038178,-1500.0,0.0001554,2]
[400792472,1767831038187,-500.0,0.0001554,2]
[400792474,1767831038197,-1500.0,0.0001554,2]
[400792476,1767831038206,-500.0,0.0001554,2]
[400792477,1767831038215,-1500.0,0.0001554,2]
[400792478,1767831038225,-200.0,0.0001554,2]
[400792479,1767831038235,-207.4,0.0001554,2]
[400792480,1767831038244,-215.0738,0.0001554,2]
[400792481,1767831038253,-223.0315306,0.0001554,2]
[400792482,1767831038263,-231.28369723,0.0001554,2]
[400792483,1767831038273,-239.84119403,0.0001554,2]
[400792484,1767831038283,-248.71531821,0.0001554,2]
[400792485,1767831038295,-257.91778498,0.0001554,2]
[400792486,1767831038304,-267.46074303,0.0001554,2]
[400792488,1767831038314,-2000.0,0.0001554,2]
[400792490,1767831038323,-277.35679052,0.0001554,2]
[400792492,1767831038333,-2000.0,0.0001554,2]
[400792494,1767831038343,-2000.0,0.0001554,2]
[400792496,1767831038353,-2000.0,0.0001554,2]
[400792498,1767831038362,-2000.0,0.0001554,2]
[400792500,1767831038372,-2000.0,0.0001554,2]
[400792502,1767831038382,-2000.0,0.0001554,2]
[400792504,1767831038391,-2000.0,0.0001554,2]
[400792506,1767831038400,-2000.0,0.0001554,2]
[400792508,1767831038410,-2000.0,0.0001554,2]
[400792510,1767831038419,-2000.0,0.0001554,2]
[400792512,1767831038429,-428.98,0.00015608,2]
[400792514,1767831038438,-1000.0,0.00015621,2]
[400792516,1767831038448,-1000.0,0.00015621,2]
[400792518,1767831038458,-1000.0,0.00015621,2]
[400792520,1767831038467,-1000.0,0.00015621,2]
[400792522,1767831038476,-1000.0,0.00015621,2]
[400792524,1767831038485,-1000.0,0.00015621,2]
[400792526,1767831038495,-1000.0,0.00015621,2]
[400792529,1767831038505,-1000.0,0.00015621,2]
[400792531,1767831038514,-357.44,0.00015707,2]
[400792533,1767831038523,-1100.0,0.00015749,2]
[400792535,1767831038532,-478.4727,0.000158,2]
[400792537,1767831038542,-500.0,0.00015899,2]
[400792539,1767831038551,-1913.78107436,0.000159,2]
[400792541,1767831038561,-1913.78107436,0.000159,2]
[400792544,1767831038570,-255.0,0.00015971,2]
[400792547,1767831038580,-3334.2467,0.00015994,2]
[400792549,1767831038589,-14226.2602,0.00015994,2]
[400792551,1767831038598,-195.0,0.00016007,2]
[400792553,1767831038608,-250.0,0.00016007,2]
[400792555,1767831038617,-195.0,0.00016007,2]
[400792557,1767831038627,-314.60765422,0.00016084,2]
[400792559,1767831038637,-314.60765422,0.00016084,2]
[400792560,1767831038646,-595.37131296,0.00016088,2]
[400792561,1767831038656,-1429.42,0.00016089,2]
[400792562,1767831038665,-9247.15,0.00016116,2]
[400792563,1767831038674,-3648.87317718,0.00016148,2]
[400792564,1767831038684,-989.85419461,0.00016158,2]
[400792565,1767831038693,-1500.0,0.00016168,2]
[400792566,1767831038702,-1000.0,0.00016168,2]
[400792567,1767831038711,-155.16094515,0.00016168,2]
[400792568,1767831038720,-1500.0,0.00016168,2]
[400792569,1767831038733,-1500.0,0.00016168,2]
[400792570,1767831038742,-1500.0,0.00016168,2]
[400792571,1767831038752,-676.00349903,0.00016168,2]
[400792572,1767831038761,-1500.0,0.00016168,2]
[400792573,1767831038770,-31711.4482151,0.00016184,2]
[400792574,1767831038779,-1562.21,0.00016184,2]
[400792575,1767831038788,-1680.0,0.00016218,2]
[400792576,1767831038797,-51236.83,0.00016236,2]
[400792577,1767831038806,-420.0,0.00016246,2]
[400792578,1767831038815,-500.0,0.00016301,2]
[400792579,1767831038824,-150.0,0.00016328,2]
[400792580,1767831038833,-179.07668943,0.00016328,2]
[400792582,1767831038842,-152.36175589,0.00016328,2]
[400792584,1767831038852,-150.0,0.00016328,2]
[400792586,1767831038862,-156.95469059,0.00016328,2]
[400792588,1767831038871,-500.0,0.00016328,2]
[400792590,1767831038880,-150.0,0.00016328,2]
[400792592,1767831038890,-150.0,0.00016328,2]
[400792594,1767831038899,-1002.0,0.00016328,2]
[400792596,1767831038908,-150.0,0.00016328,2]
[400792598,1767831038919,-3648.87317715,0.00016343,2]
[400792600,1767831038928,-314.60765418,0.00016343,2]
[400792602,1767831038937,-314.60765418,0.00016343,2]
[400792604,1767831038947,-150.0,0.00016383,2]
[400792606,1767831038957,-500.0,0.00016383,2]
[400792608,1767831038967,-150.0,0.00016383,2]
[400792610,1767831038976,-1002.0,0.00016383,2]
[400792612,1767831038985,-270.70051101,0.00016383,2]
[400792614,1767831038995,-1500.0,0.00016403,2]
[400792616,1767831039004,-2811.51913879,0.00016411,2]
[400792618,1767831039013,-500.0,0.00016437,2]
[400792620,1767831039022,-500.0,0.00016437,2]
[400792622,1767831039031,-500.0,0.00016437,2]
[400792624,1767831039042,-500.0,0.00016437,2]
[400792626,1767831039054,-500.0,0.00016437,2]
[400792628,1767831039063,-500.0,0.00016437,2]
[400792630,1767831039072,-500.0,0.00016437,2]
[400792632,1767831039082,-500.0,0.00016437,2]
[400792634,1767831039091,-506.42348911,0.00016437,2]
[400792636,1767831039101,-150.0,0.00016438,2]
[400792638,1767831039110,-500.0,0.00016438,2]
[400792640,1767831039121,-200.0,0.00016438,2]
[400792642,1767831039130,-1002.0,0.00016438,2]
[400792644,1767831039140,-205.29209907,0.00016492,2]
[400792646,1767831039149,-500.0,0.00016492,2]
[400792647,1767831039158,-1002.0,0.00016492,2]
[400792649,1767831039168,-300.0,0.00016519,2]
[400792651,1767831039177,-846.94,0.00016528,2]
[400792653,1767831039186,-3648.87317715,0.00016537,2]
[400792655,1767831039195,-500.0,0.00016547,2]
[400792657,1767831039205,-1002.0,0.00016547,2]
[400792659,1767831039215,-1100.0,0.00016578,2]
[400792661,1767831039224,-300.0,0.00016597,2]
[400792663,1767831039233,-556.3800823,0.00016602,2]
[400792665,1767831039242,-1002.0,0.00016602,2]
[400792667,1767831039252,-314.60765418,0.00016603,2]
[400792669,1767831039261,-314.60765418,0.00016603,2]
[400792671,1767831039271,-617.40005154,0.00016636,2]
[400792673,1767831039280,-500.0,0.00016642,2]
[400792675,1767831039289,-500.0,0.00016643,2]
[400792677,1767831039298,-628.50709886,0.00016643,2]
[400792679,1767831039308,-500.0,0.00016643,2]
[400792681,1767831039317,-500.0,0.00016643,2]
[400792683,1767831039327,-336.03289894,0.00016643,2]
[400792685,1767831039336,-1002.0,0.00016657,2]
[400792687,1767831039345,-989.69084302,0.00016663,2]
[400792690,1767831039355,-1002.0,0.00016712,2]
[400792691,1767831039364,-1000.0,0.00016716,2]
[400792693,1767831039373,-870.47980866,0.00016716,2]
[400792695,1767831039383,-2000.0,0.00016716,2]
[400792697,1767831039393,-2000.0,0.00016716,2]
[400792699,1767831039403,-3648.87317715,0.00016732,2]
[400792700,1767831039412,-157.15193471,0.00016742,2]
[400792702,1767831039423,-482.63,0.00016755,2]
[400792704,1767831039432,-1002.0,0.00016766,2]
[400792706,1767831039442,-300.0,0.00016776,2]
[400792708,1767831039451,-1002.0,0.00016821,2]
[400792710,1767831039460,-314.60765418,0.00016862,2]
[400792712,1767831039470,-314.60765418,0.00016862,2]
[400792714,1767831039479,-1002.0,0.00016876,2]
[400792716,1767831039488,-1429.42,0.00016893,2]
[400792718,1767831039497,-166.66,0.00016907,2]
[400792720,1767831039509,-334.5472959,0.00016909,2]
[400792722,1767831039520,-642.94,0.00016909,2]
[400792724,1767831039529,-287.61899177,0.00016909,2]
[400792726,1767831039539,-3648.87317715,0.00016927,2]
[400792728,1767831039548,-1002.0,0.00016931,2]
[400792730,1767831039558,-300.0,0.00016939,2]
[400792732,1767831039568,-428.98,0.00016977,2]
[400792734,1767831039577,-2690.0,0.0001698,2]
[400792736,1767831039586,-1002.0,0.00016986,2]
[400792738,1767831039596,-250.0,0.00017,2]
[400792740,1767831039605,-1002.0,0.0001704,2]
[400792742,1767831039614,-300.0,0.0001707,2]
[400792744,1767831039623,-2690.0,0.00017084,2]
[400792746,1767831039632,-1002.0,0.00017095,2]
[400792747,1767831039641,-3648.87317715,0.00017121,2]
[400792749,1767831039651,-314.60765418,0.00017122,2]
[400792751,1767831039660,-1002.0,0.0001715,2]
[400792753,1767831039669,-2690.0,0.00017168,2]
[400792755,1767831039679,-640.24385345,0.00017184,2]
[400792757,1767831039687,-433.0,0.00017189,2]
[400792759,1767831039697,-1000.0,0.00017191,2]
[400792761,1767831039706,-357.44,0.00017197,2]
[400792763,1767831039715,-1002.0,0.00017205,2]
[400792765,1767831039724,-300.0,0.00017212,2]
[400792767,1767831039734,-1002.0,0.0001726,2]
[400792769,1767831039743,-300.0,0.00017262,2]
[400792771,1767831039752,-2500.0,0.00017264,2]
[400792773,1767831039762,-2500.0,0.00017264,2]
[400792775,1767831039771,-1002.0,0.00017314,2]
[400792777,1767831039780,-3648.87317715,0.00017316,2]
[400792779,1767831039789,-155.2,0.00017321,2]
[400792781,1767831039798,-157.15193471,0.0001734,2]
[400792783,1767831039807,-155.2,0.00017349,2]
[400792785,1767831039816,-1002.0,0.00017369,2]
[400792787,1767831039825,-300.0,0.00017385,2]
[400792789,1767831039835,-289.0,0.00017393,2]
[400792790,1767831039844,-1000.0,0.000174,2]
[400792792,1767831039854,-1000.0,0.00017404,2]
[400792794,1767831039863,-300.0,0.00017409,2]
[400792796,1767831039873,-1002.0,0.00017424,2]
[400792798,1767831039882,-300.0,0.00017424,2]
[400792800,1767831039891,-1100.0,0.0001745,2]
[400792802,1767831039900,-2690.0,0.00017457,2]
[400792804,1767831039910,-300.0,0.00017464,2]
[400792807,1767831039919,-166.66,0.00017465,2]
[400792810,1767831039928,-300.0,0.00017469,2]
[400792813,1767831039938,-1002.0,0.00017479,2]
[400792816,1767831039949,-505.0,0.00017482,2]
[400792818,1767831039958,-168.0,0.00017483,2]
[400792820,1767831039967,-1000.0,0.00017485,2]
[400792822,1767831039976,-2000.0,0.000175,2]
[400792824,1767831039985,-500.0,0.00017507,2]
[400792826,1767831039994,-3648.87317715,0.00017511,2]
[400792828,1767831040003,-357.44,0.00017532,2]
[400792830,1767831040012,-1002.0,0.00017533,2]
[400792832,1767831040021,-1021.03877525,0.00017588,2]
[400792833,1767831040031,-1000.0,0.000176,2]
[400792835,1767831040041,-425.0,0.0001762,2]
[400792837,1767831040054,-10941.0,0.00017621,2]
[400792839,1767831040063,-1343.242,0.00017621,2]
[400792841,1767831040073,-920.093,0.00017621,2]
[400792843,1767831040083,-1205.708,0.00017621,2]
[400792845,1767831040093,-4818.0,0.00017621,2]
[400792847,1767831040102,-565.0,0.00017621,2]
[400792849,1767831040111,-2436.0,0.00017621,2]
[400792851,1767831040121,-4936.02146803,0.0001764,2]
[400792853,1767831040131,-168.0,0.0001764,2]
[400792855,1767831040141,-1429.42,0.00017698,2]
[400792857,1767831040151,-300.0,0.00017699,2]
[400792859,1767831040160,-4299.1132784,0.000177,2]
[400792861,1767831040170,-3648.87317715,0.00017705,2]
[400792863,1767831040179,-1112.16,0.00017714,2]
[400792865,1767831040188,-556.08,0.00017714,2]
[400792867,1767831040198,-556.08,0.00017714,2]
[400792869,1767831040207,-348.61,0.00017714,2]
[400792871,1767831040216,-1000.0,0.00017723,2]
[400792873,1767831040225,-663.93287602,0.00017732,2]
[400792875,1767831040235,-174.089,0.00017733,2]
[400792877,1767831040244,-2817.194,0.00017733,2]
[400792879,1767831040253,-1000.0,0.00017733,2]
[400792881,1767831040262,-1000.0,0.00017734,2]
[400792883,1767831040271,-300.0,0.00017735,2]
[400792885,1767831040281,-1000.0,0.00017736,2]
[400792887,1767831040292,-300.0,0.00017738,2]
[400792889,1767831040301,-1000.0,0.00017738,2]
[400792890,1767831040310,-450.04111853,0.00017739,2]
[400792892,1767831040319,-300.0,0.00017742,2]
[400792893,1767831040328,-1000.0,0.00017743,2]
[400792895,1767831040341,-300.0,0.00017745,2]
[400792897,1767831040350,-150.0,0.0001775,2]
[400792898,1767831040360,-1000.0,0.00017755,2]
[400792900,1767831040370,-1000.0,0.00017757,2]
[400792901,1767831040379,-500.0,0.00017758,2]
[400792903,1767831040388,-300.0,0.00017758,2]
[400792905,1767831040397,-1000.0,0.0001776,2]
[400792907,1767831040406,-1000.0,0.0001776,2]
[400792908,1767831040415,-558.08,0.00017763,2]
[400792910,1767831040426,-425.0,0.00017765,2]
[400792912,1767831040436,-300.0,0.00017768,2]
[400792914,1767831040444,-300.0,0.00017768,2]
[400792915,1767831040454,-1000.0,0.00017768,2]
[400792917,1767831040463,-317.57298495,0.00017769,2]
[400792919,1767831040472,-300.0,0.00017769,2]
[400792920,1767831040481,-161.23858714,0.00017771,2]
[400792922,1767831040490,-300.0,0.00017772,2]
[400792924,1767831040500,-300.0,0.00017775,2]
[400792926,1767831040509,-300.0,0.00017776,2]
[400792927,1767831040518,-1000.0,0.00017776,2]
[400792929,1767831040527,-150.0,0.00017777,2]
[400792931,1767831040536,-300.0,0.00017779,2]
[400792933,1767831040545,-300.0,0.0001778,2]
[400792934,1767831040555,-1000.0,0.00017781,2]
[400792936,1767831040564,-300.0,0.00017781,2]
[400792937,1767831040573,-1000.0,0.00017783,2]
[400792939,1767831040583,-587.0,0.00017784,2]
[400792941,1767831040592,-1000.0,0.00017791,2]
[400792943,1767831040602,-1000.0,0.00017791,2]
[400792944,1767831040611,-150.0,0.00017792,2]
[400792946,1767831040621,-300.0,0.00017794,2]
[400792948,1767831040630,-300.0,0.00017796,2]
[400792950,1767831040640,-300.0,0.00017798,2]
[400792952,1767831040649,-300.0,0.00017798,2]
[400792954,1767831040658,-300.0,0.00017799,2]
[400792955,1767831040667,-209.13021692,0.000178,2]
[400792957,1767831040676,-1000.0,0.000178,2]
[400792959,1767831040686,-300.0,0.000178,2]
[400792961,1767831040696,-150.0,0.000178,2]
[400792963,1767831040705,-401.35408572,0.000178,2]
[400792965,1767831040715,-1000.0,0.00017803,2]
[400792966,1767831040724,-1000.0,0.00017804,2]
[400792968,1767831040733,-300.0,0.00017805,2]
[400792970,1767831040742,-1000.0,0.00017806,2]
[400792972,1767831040752,-1000.0,0.00017806,2]
[400792973,1767831040762,-300.0,0.00017809,2]
[400792975,1767831040771,-300.0,0.00017811,2]
[400792977,1767831040780,-1000.0,0.00017812,2]
[400792979,1767831040790,-3000.0,0.00017812,2]
[400792980,1767831040799,-1948.81970011,0.00017812,2]
[400792982,1767831040808,-300.0,0.00017815,2]
[400792984,1767831040817,-209.13021692,0.00017817,2]
[400792986,1767831040826,-1000.0,0.00017817,2]
[400792988,1767831040835,-168.0,0.00017817,2]
[400792990,1767831040844,-1000.0,0.00017818,2]
[400792991,1767831040853,-168.0,0.00017818,2]
[400792993,1767831040863,-6784.39577,0.0001782,2]
[400792995,1767831040872,-1000.0,0.00017822,2]
[400792996,1767831040881,-1000.0,0.00017825,2]
[400792998,1767831040891,-300.0,0.00017827,2]
[400793000,1767831040900,-300.0,0.00017828,2]
[400793002,1767831040909,-300.0,0.00017828,2]
[400793004,1767831040919,-1000.0,0.00017828,2]
[400793006,1767831040928,-150.0,0.00017828,2]
[400793007,1767831040937,-500.0,0.00017829,2]
[400793009,1767831040947,-261.94980575,0.0001783,2]
[400793011,1767831040956,-1000.0,0.0001783,2]
[400793013,1767831040965,-857.71504644,0.0001783,2]
[400793014,1767831040974,-300.0,0.00017831,2]
[400793016,1767831040984,-300.0,0.00017832,2]
[400793018,1767831040993,-209.13021692,0.00017833,2]
[400793020,1767831041002,-300.0,0.00017834,2]
[400793021,1767831041011,-300.0,0.00017837,2]
[400793023,1767831041020,-300.0,0.00017837,2]
[400793025,1767831041029,-2351.0,0.00017839,2]
[400793027,1767831041039,-1000.0,0.0001784,2]
[400793029,1767831041051,-300.0,0.0001784,2]
[400793030,1767831041060,-300.0,0.0001784,2]
[400793032,1767831041070,-1000.0,0.0001784,2]
[400793034,1767831041079,-1000.0,0.00017845,2]
[400793036,1767831041091,-300.0,0.00017846,2]
[400793038,1767831041100,-425.0,0.00017847,2]
[400793040,1767831041110,-300.0,0.00017848,2]
[400793041,1767831041120,-209.13021692,0.0001785,2]
[400793043,1767831041130,-300.0,0.00017854,2]
[400793045,1767831041140,-200.0,0.00017855,2]
[400793047,1767831041149,-1000.0,0.00017855,2]
[400793048,1767831041159,-300.0,0.00017855,2]
[400793050,1767831041168,-200.0,0.00017856,2]
[400793052,1767831041178,-1000.0,0.00017856,2]
[400793054,1767831041188,-300.0,0.00017857,2]
[400793056,1767831041198,-150.0,0.00017857,2]
[400793058,1767831041207,-300.0,0.00017858,2]
[400793059,1767831041216,-300.0,0.00017862,2]
[400793061,1767831041227,-150.0,0.00017864,2]
[400793063,1767831041236,-209.13021692,0.00017867,2]